[Event "41st Eastman Open Ghent"]
[Site "Ghent"]
[Date "2018.07.18"]
[Round "9"]
[White "Maddens, Martijn"]
[Black "Bottema, Martin"]
[Result "1/2-1/2"]
[ECO "C00"]
[WhiteElo "2153"]
[BlackElo "2111"]
[Annotator "NA"]
[PlyCount "267"]
[EventDate "2018.07.15"]
[EventCountry "BEL"]
[SourceTitle "playchess.com"]
[Source "ChessBase"]
[SourceQuality "1"]
[TimeControl "5400+30"]

1. e4 {[%emt 0:10:08]} e6 {[%emt 0:00:00]} 2. d4 {[%emt 0:00:12]} d5 {[%emt 0:00:00]} 3. Bd3 {[%emt 0:00:20]} c5 {[%emt 0:01:52]} 4. exd5 {[%emt 0:00:42]} exd5 {[%emt 0:00:08]} 5. Nf3 {[%emt 0:01:02]} Nf6 {[%emt 0:01:12]} 6. O-O {[%emt 0:00:16]} c4 {[%emt 0:02:54]} 7. Re1+ {[%emt 0:05:32]} Be7 {[%emt 0:02:18]} 8. Bf1 {[%emt 0:00:05] LiveBook: 53 Games} O-O {[%emt 0:00:33] C01: French: Exchange Variation} 9. b3 {[%emt 0:00:42]} (9. Bg5) 9... cxb3 {[%emt 0:02:40]} 10. axb3 {[%emt 0:00:34]} Nc6 {[%emt 0:00:27]} 11. Ne5 {[%emt 0:10:56]} Nxe5 {[%emt 0:04:53]} 12. dxe5 {[%emt 0:05:01]} Ne4 {[%emt 0:00:12]} 13. Nd2 $146 {[%emt 0:04:33]} ({Predecessor:} 13. Ba3 Nxf2 14. Kxf2 {1-0 (48) Camacho Collados,J (2379)-Garcia Roman,D (2423) Linares 2016}) 13... Bf5 {[%emt 0:13:17]} 14. Qf3 {[%emt 0:04:39]} Qd7 {[%emt 0:03:48]} 15. Nxe4 {[%emt 0:11:09]} Bxe4 {[%emt 0:01:06]} 16. Rxe4 {[%emt 0:02:14]} dxe4 {[%emt 0:00:13]} 17. Qxe4 {[%emt 0:00:05]} Qc6 {[%emt 0:02:29]} 18. Bd3 {[%emt 0:00:05]} Qxe4 {[%emt 0:02:06]} 19. Bxe4 {[%emt 0:00:12]} Bc5 {[%emt 0:02:35]} 20. Bxb7 {[%emt 0:02:22]} Rad8 {[%emt 0:03:44]} 21. Bf4 {[%emt 0:05:18]} Bd4 {[%emt 0:05:26]} 22. Re1 {[%emt 0:00:55]} Bc3 {[%emt 0:00:19]} 23. Rf1 {[%emt 0:00:13]} Rfe8 {[%emt 0:03:04]} 24. Bg5 {[%emt 0:00:37]} Rb8 {[%emt 0:06:33]} 25. Bc6 {[%emt 0:00:08]} Re6 {[%emt 0:06:14]} ({Ein No Go ist} 25... Rxe5 $6 26. Bf4 $16) 26. Bd5 {[%emt 0:10:10]} Ra6 {[%emt 0:09:29]} 27. f4 {[%emt 0:00:14]} h6 {[%emt 0:02:24]} 28. Be7 {[%emt 0:01:01]} Re8 {[%emt 0:01:23]} 29. Bd6 {[%emt 0:00:29]} Rd8 {[%emt 0:02:57]} 30. Rf3 {[%emt 0:02:32]} Bd4+ {[%emt 0:03:49]} 31. Kf1 {[%emt 0:00:02]} Raxd6 {[%emt 0:00:17]} 32. exd6 {[%emt 0:00:11]} Rxd6 {[%emt 0:00:02]} 33. c4 {[%emt 0:04:01]} Bc5 {[%emt 0:00:28]} 34. Ke2 {[%emt 0:01:06]} Ra6 {[%emt 0:00:16]} 35. Rd3 {[%emt 0:03:30]} Ra2+ {[%emt 0:00:41]} 36. Kf3 {[%emt 0:00:34]} Rb2 {[%emt 0:01:01]} 37. Bc6 {[%emt 0:04:43]} f5 {[%emt 0:04:15]} 38. Ba4 {[%emt 0:00:44]} g6 {[%emt 0:04:42]} 39. Rd5 {[%emt 0:01:06]} Bb4 {[%emt 0:03:21]} 40. Rd8+ {[%emt 0:01:55]} Kf7 {[%emt 0:00:22]} 41. Rd7+ {[%emt 0:00:01]} Kf6 {[%emt 0:00:12]} 42. Rxa7 {[%emt 0:00:04]} Rc2 {[%emt 0:00:25]} 43. Ra6+ {[%emt 0:01:30]} Kg7 {[%emt 0:00:06]} 44. h3 {[%emt 0:04:36]} g5 {[%emt 0:00:33]} 45. fxg5 {[%emt 0:00:57]} hxg5 {[%emt 0:00:07]} 46. Re6 {[%emt 0:01:17]} Bc5 {[%emt 0:01:35]} 47. Rc6 {[%emt 0:02:36]} Rf2+ {[%emt 0:02:11]} 48. Kg3 {[%emt 0:00:15]} Be3 {[%emt 0:00:25]} 49. Rc7+ {[%emt 0:01:09]} Kf6 {[%emt 0:00:07]} 50. Bc6 {[%emt 0:00:17]} Rb2 {[%emt 0:00:35]} 51. Rb7 {[%emt 0:00:19]} Bc5 {[%emt 0:01:08]} 52. Rb5 {[%emt 0:00:08]} Bd6+ {[%emt 0:00:15]} 53. Kf3 {[%emt 0:00:05]} Rc2 {[%emt 0:00:25]} 54. Bd5 {[%emt 0:00:35]} Bf4 {[%emt 0:00:37]} 55. c5 {[%emt 0:00:59]} Ke5 {[%emt 0:00:17]} 56. Bc4 {[%emt 0:01:55]} g4+ {[%emt 0:00:55]} 57. hxg4 {[%emt 0:00:10]} fxg4+ {[%emt 0:00:08]} 58. Kxg4 {[%emt 0:00:11]} Rxg2+ {[%emt 0:00:04]} 59. Kf3 {[%emt 0:00:11]} Rg3+ {[%emt 0:00:29]} 60. Kf2 {[%emt 0:00:03]} Rh3 {[%emt 0:00:34]} 61. Rb7 {[%emt 0:01:28]} Rh2+ {[%emt 0:01:01]} 62. Kf3 {[%emt 0:00:11]} Rh3+ {[%emt 0:00:08]} 63. Ke2 {[%emt 0:00:31]} Kd4 {[%emt 0:00:24]} 64. c6 {[%emt 0:00:23]} Rh6 {[%emt 0:01:29]} 65. Bb5 {[%emt 0:01:01]} Kc5 {[%emt 0:00:53]} 66. Ba4 {[%emt 0:00:01]} Rh8 {[%emt 0:02:04]} 67. b4+ {[%emt 0:00:11]} Kc4 {[%emt 0:00:11]} 68. b5 {[%emt 0:00:10]} Kb4 {[%emt 0:00:12]} 69. Bc2 {[%emt 0:00:48]} Kc5 {[%emt 0:01:58]} 70. Be4 {[%emt 0:00:22]} Rh6 {[%emt 0:00:50]} 71. Bd3 {[%emt 0:01:37]} Rh8 {[%emt 0:01:08] [#]} 72. Kf3 $2 {[%emt 0:00:08]} (72. c7 $1 $18) 72... Bd6 {[%emt 0:00:10]} 73. Ke4 {[%emt 0:00:29]} Rh4+ {[%emt 0:00:08]} 74. Kf5 {[%emt 0:00:10]} Rh8 {[%emt 0:01:02]} 75. Kg6 {[%emt 0:01:11]} Rg8+ {[%emt 0:00:39]} 76. Kf7 {[%emt 0:00:42]} Rb8 {[%emt 0:00:10]} 77. Rd7 {[%emt 0:00:39]} Rc8 {[%emt 0:00:29]} 78. Bf5 {[%emt 0:00:29]} Rc7 {[%emt 0:00:18]} 79. Ke6 {[%emt 0:00:41]} Bg3 {[%emt 0:00:14]} 80. Rd3 {[%emt 0:00:27]} Kxb5 {[%emt 0:00:39]} 81. Rxg3 {[%emt 0:00:02]} Rxc6+ {[%emt 0:00:07]} 82. Ke5 {[%emt 0:00:29]} Rc5+ {[%emt 0:00:03]} 83. Kf6 {[%emt 0:00:13]} Kc4 {[%emt 0:00:08]} 84. Be6+ {[%emt 0:00:31]} Kd4 {[%emt 0:00:15]} 85. Rg4+ {[%emt 0:00:09]} Ke3 {[%emt 0:00:08]} 86. Bf5 {[%emt 0:00:08]} Rc6+ {[%emt 0:00:24]} 87. Kg5 {[%emt 0:00:07]} Rc5 {[%emt 0:01:13]} 88. Rb4 {[%emt 0:01:11]} Ra5 {[%emt 0:00:20]} 89. Re4+ {[%emt 0:00:11]} Kf3 {[%emt 0:00:07]} 90. Rh4 {[%emt 0:00:26]} Ke3 {[%emt 0:00:06]} 91. Re4+ {[%emt 0:00:35]} Kf3 {[%emt 0:00:02]} 92. Rd4 {[%emt 0:00:05]} Ra3 {[%emt 0:00:41]} 93. Rh4 {[%emt 0:00:02]} Ra5 {[%emt 0:00:23]} 94. Rh3+ {[%emt 0:00:06]} Kg2 {[%emt 0:00:47]} 95. Re3 {[%emt 0:00:44]} Kf2 {[%emt 0:00:10]} 96. Rc3 {[%emt 0:00:18]} Ra4 {[%emt 0:00:57]} 97. Be6 {[%emt 0:01:15]} Ke2 {[%emt 0:00:25]} 98. Kf5 {[%emt 0:00:40]} Kd2 {[%emt 0:00:23]} 99. Rh3 {[%emt 0:00:25]} Ra6 {[%emt 0:01:12]} 100. Bd5 {[%emt 0:00:32]} Rd6 {[%emt 0:00:15]} 101. Ke5 {[%emt 0:00:10]} Rd8 {[%emt 0:00:09]} 102. Kd4 {[%emt 0:00:11]} Rd7 {[%emt 0:00:23]} 103. Rh2+ {[%emt 0:00:10]} Ke1 {[%emt 0:00:20]} 104. Ke3 {[%emt 0:00:12]} Kd1 {[%emt 0:02:13]} 105. Be4 {[%emt 0:01:33]} Kc1 {[%emt 0:00:38]} 106. Rc2+ {[%emt 0:00:06]} Kd1 {[%emt 0:00:08]} 107. Rc5 {[%emt 0:00:57]} Re7 {[%emt 0:00:58]} 108. Rb5 {[%emt 0:00:10]} Rc7 {[%emt 0:00:22]} 109. Rb1+ {[%emt 0:00:08]} Rc1 {[%emt 0:00:11]} 110. Rb3 {[%emt 0:00:38]} Rc7 {[%emt 0:00:24]} 111. Rb1+ {[%emt 0:00:25]} Rc1 {[%emt 0:00:05]} 112. Rb2 {[%emt 0:00:02]} Rc7 {[%emt 0:00:46]} 113. Bd3 {[%emt 0:02:18]} Re7+ {[%emt 0:00:19]} 114. Kd4 {[%emt 0:00:07]} Rd7+ {[%emt 0:00:13]} 115. Kc3 {[%emt 0:00:02]} Rc7+ {[%emt 0:00:27]} 116. Bc4 {[%emt 0:00:01]} Ke1 {[%emt 0:00:21]} 117. Re2+ {[%emt 0:00:16]} Kd1 {[%emt 0:00:09]} 118. Rf2 {[%emt 0:01:06]} Re7 {[%emt 0:00:10]} 119. Rf1+ {[%emt 0:02:09]} Re1 {[%emt 0:00:07]} 120. Rf7 {[%emt 0:00:05]} Re8 {[%emt 0:00:47]} 121. Bb5 {[%emt 0:01:39]} Rc8+ {[%emt 0:00:15]} 122. Kd3 {[%emt 0:00:21]} Rd8+ {[%emt 0:00:09]} 123. Ke3 {[%emt 0:00:11]} Kc2 {[%emt 0:00:13]} 124. Rc7+ {[%emt 0:00:15]} Kb3 {[%emt 0:00:11]} 125. Bd3 {[%emt 0:00:18]} Kb4 $11 {[%emt 0:00:25]} 126. Kd2 {[%emt 0:00:15]} Rd6 {[%emt 0:00:29]} 127. Rc1 {[%emt 0:00:28]} Rd8 {[%emt 0:00:37]} 128. Rc4+ {[%emt 0:00:05]} Kb3 {[%emt 0:00:26]} 129. Rc1 {[%emt 0:00:15]} Kb4 {[%emt 0:00:20]} 130. Rc4+ {[%emt 0:00:07]} Kb3 {[%emt 0:00:06]} 131. Rc5 {[%emt 0:00:04]} Rd4 {[%emt 0:00:47]} 132. Rb5+ {[%emt 0:00:36]} Rb4 {[%emt 0:00:54]} 133. Bc2+ {[%emt 0:00:08]} Kc4 {[%emt 0:00:06]} 134. Bd3+ {[%emt 0:00:08]} 1/2-1/2

[Event "41st Eastman Open Ghent"]
[Site "Ghent"]
[Date "2018.07.18"]
[Round "9"]
[White "James, David J"]
[Black "Slijper, Thomas"]
[Result "0-1"]
[ECO "A43"]
[WhiteElo "2122"]
[BlackElo "1919"]
[Annotator "NA"]
[PlyCount "44"]
[EventDate "2018.07.15"]
[EventCountry "BEL"]
[SourceTitle "playchess.com"]
[Source "ChessBase"]
[SourceQuality "1"]
[TimeControl "5400+30"]

1. d4 {[%emt 0:00:00]} Nf6 {[%emt 0:00:00]} 2. Nf3 {[%emt 0:00:00]} c5 {[%emt 0:00:00]} 3. d5 {[%emt 0:00:12]} b5 {[%emt 0:00:13]} 4. Bg5 {[%emt 0:00:30]} Qb6 {[%emt 0:00:26]} 5. Nbd2 {[%emt 0:00:50]} (5. e3 $14) 5... g6 {[%emt 0:04:22]} 6. e4 {[%emt 0:00:21]} Bg7 {[%emt 0:00:29]} 7. a4 {[%emt 0:00:25]} b4 {[%emt 0:05:18]} 8. d6 {[%emt 0:17:26]} e6 {[%emt 0:09:08]} 9. e5 {[%emt 0:08:39]} Ng4 {[%emt 0:02:15]} 10. h3 {[%emt 0:11:19]} f6 {[%emt 0:04:29]} 11. hxg4 {[%emt 0:04:18]} fxg5 {[%emt 0:01:04]} 12. Nxg5 {[%emt 0:00:24]} Bb7 {[%emt 0:14:28]} 13. Rxh7 {[%emt 0:04:47]} Rxh7 {[%emt 0:06:32]} 14. Nxh7 {[%emt 0:00:03]} Bd5 {[%emt 0:02:19]} 15. f4 $2 {[%emt 0:05:43]} (15. Nc4 $18 Bxc4 16. Bxc4) 15... c4 {[%emt 0:08:59]} 16. Qe2 {[%emt 0:07:53]} Qd4 {[%emt 0:02:36]} 17. Nxc4 {[%emt 0:10:12]} Qxf4 {[%emt 0:01:30]} 18. Nf6+ {[%emt 0:00:54]} Bxf6 {[%emt 0:04:09]} 19. exf6 {[%emt 0:00:03]} Bxc4 {[%emt 0:05:20]} 20. Qxc4 {[%emt 0:00:04]} Qg3+ {[%emt 0:00:11] [#]} 21. Kd1 $14 {[%emt 0:03:31]} (21. Kd2 $1 $16 Nc6 22. Re1 Qf2+ 23. Kd1 Qxf6 24. Bd3) 21... Nc6 {[%emt 0:01:57]} 22. Kc1 {[%emt 0:03:26]} Qe1# {[%emt 0:00:48]} 0-1

[Event "41st Eastman Open Ghent"]
[Site "Ghent"]
[Date "2018.07.18"]
[Round "9"]
[White "Mitran, Anthony"]
[Black "Hamblok, Roel"]
[Result "0-1"]
[ECO "A06"]
[WhiteElo "2096"]
[BlackElo "2286"]
[Annotator "NA"]
[PlyCount "60"]
[EventDate "2018.07.15"]
[EventCountry "BEL"]
[SourceTitle "playchess.com"]
[Source "ChessBase"]
[SourceQuality "1"]
[TimeControl "5400+30"]

1. Nf3 {[%emt 0:01:58]} d5 {[%emt 0:00:07]} 2. e3 {[%emt 0:00:16]} Nf6 {[%emt 0:00:14]} 3. c4 {[%emt 0:00:04]} e6 {[%emt 0:00:15]} 4. b3 {[%emt 0:00:30]} Nbd7 {[%emt 0:00:40]} 5. Bb2 {[%emt 0:00:07]} b6 {[%emt 0:00:26] A13: Reti-Eröffnung} 6. Nc3 {[%emt 0:00:39]} Bb7 {[%emt 0:00:06]} 7. d4 {[%emt 0:00:23]} a6 {[%emt 0:00:05]} (7... Bd6 8. Bd3 O-O 9. O-O a6 10. Rc1 Qe7 11. cxd5 exd5 12. Ne2 Ne4 13. Qc2 Rac8 14. Ng3 g6 15. Qe2 h5 16. Ne5 Nxe5 17. dxe5 Bxe5 18. Bxe5 Qxe5 19. Nxe4 dxe4 20. Bxa6 Bxa6 21. Qxa6 {½-½ (57) Harikrishna,P (2732)-Navara,D (2727) Prague 2018}) 8. Be2 {[%emt 0:01:16]} Bd6 {[%emt 0:00:18]} 9. O-O {[%emt 0:00:42]} O-O {[%emt 0:00:14]} 10. cxd5 {[%emt 0:01:09]} exd5 {[%emt 0:00:27]} 11. Bd3 {[%emt 0:00:54]} Ne4 {[%emt 0:01:20]} 12. Ne2 $146 {[%emt 0:00:26]} Qe7 {[%emt 0:14:21]} 13. Rc1 {[%emt 0:07:04]} f5 {[%emt 0:07:41]} 14. Qc2 {[%emt 0:04:41]} Rac8 {[%emt 0:01:18]} 15. Ng3 {[%emt 0:01:31]} g5 {[%emt 0:12:49]} 16. Rfe1 {[%emt 0:06:15]} g4 {[%emt 0:14:32]} 17. Nd2 {[%emt 0:00:57]} h5 {[%emt 0:03:19]} 18. Ndxe4 $2 {[%emt 0:06:40]} (18. Qd1 $17) 18... fxe4 {[%emt 0:01:11]} 19. Bf1 {[%emt 0:00:26]} Qg5 {[%emt 0:05:50]} 20. Be2 {[%emt 0:12:57]} Rf7 {[%emt 0:05:09]} 21. Bd1 {[%emt 0:03:40]} Rcf8 {[%emt 0:00:39]} 22. Nf1 {[%emt 0:01:20]} Qh4 {[%emt 0:02:41]} 23. Ng3 {[%emt 0:03:00]} Rxf2 {[%emt 0:04:44]} 24. Qxf2 $19 {[%emt 0:00:50]} Rxf2 {[%emt 0:00:02]} 25. Kxf2 {[%emt 0:00:46]} Qxh2 {[%emt 0:00:06]} 26. Ne2 {[%emt 0:01:20]} Qh4+ {[%emt 0:02:21]} 27. Kf1 {[%emt 0:00:14]} Qh1+ {[%emt 0:00:54]} 28. Ng1 {[%emt 0:00:01]} Bh2 {[%emt 0:00:21]} 29. Kf2 {[%emt 0:00:19]} g3+ {[%emt 0:00:11]} 30. Ke2 {[%emt 0:00:01]} Qxg2# {[%emt 0:00:08]} 0-1